bitfinex-derivatives/quotes_ETHF0:USTF0_20250624
["timestamp","ask_amount","ask_price","bid_price","bid_amount"]
[1750734771916,3.2078,2397.8,2397.7,6.822]
[1750734772120,4.04135,2397.8,2397.7,6.822]
[1750734772626,3.2078,2397.8,2397.3,0.7102]
[1750734772812,3.2078,2397.4,2397.3,8.36593]
[1750734773016,4.04149,2397.4,2397.3,7.5322]
[1750734773218,4.04149,2397.4,2397.3,6.822]
[1750734774630,4.04149,2397.4,2397.0,3.8719]
[1750734774631,0.83377,2397.2,2397.0,4.04162]
[1750734774829,0.83377,2397.2,2397.0,3.2078]
[1750734775132,0.8338,2397.1,2397.0,3.2078]
[1750734775428,0.83383,2397.0,2396.9,6.822]
[1750734775621,4.73932,2397.1,2396.9,7.65586]
[1750734776028,4.73932,2397.1,2396.9,6.822]
[1750734776231,0.83383,2397.0,2396.9,6.822]
[1750734776729,3.9055,2397.1,2396.9,6.822]
[1750734777027,4.7393,2397.1,2396.9,6.822]
[1750734777616,4.0416,2397.1,2396.9,7.65586]
[1750734778028,0.83383,2397.0,2396.9,6.822]
[1750734780623,3.2078,2397.1,2396.8,6.822]
[1750734780821,0.83389,2396.9,2396.8,6.822]
[1750734781433,1.51714,2397.0,2396.8,7.65589]
[1750734782127,2.08467,2396.9,2396.2,7.6571]
[1750734782335,0.83407,2396.3,2396.2,6.823]
[1750734783228,0.83406,2396.4,2396.2,7.6571]
[1750734783734,3.2078,2396.5,2396.4,0.83404]
[1750734785030,3.2078,2396.5,2396.3,2.26246]
[1750734785231,3.2078,2396.5,2396.4,0.83404]
[1750734785432,3.2078,2396.5,2396.4,2.25174]
[1750734789043,3.2078,2396.6,2396.4,1.4177]
[1750734789239,0.83392,2396.8,2396.5,0.7109]
[1750734789439,0.83392,2396.8,2396.6,2.19726]
[1750734791540,0.83394,2396.7,2396.6,1.3633]
[1750734792748,3.8643,2396.9,2396.5,1.4261]
[1750734792749,0.83397,2396.6,2396.5,1.4261]
[1750734794439,3.2078,2396.6,2396.1,3.2078]
[1750734794643,3.2078,2396.3,2395.9,8.2223]
[1750734794938,0.83418,2396.0,2395.9,6.823]
[1750734795140,0.83418,2396.0,2395.4,5.69798002]
[1750734795141,0.83439,2395.4,2395.3,6.823]
[1750734796247,0.83453,2395.0,2394.9,6.823]
[1750734796747,3.2078,2395.2,2394.9,6.823]
[1750734796941,0.8344,2395.4,2394.9,6.823]
[1750734797146,0.83443,2395.3,2395.0,2.20151]
[1750734797343,0.83447,2395.2,2395.0,1.367]
[1750734797542,0.83449,2395.1,2395.0,1.367]
[1750734797951,0.83448,2395.2,2395.0,1.367]
[1750734798156,0.83446,2395.2,2395.0,1.367]
[1750734798547,3.2078,2395.3,2395.0,2.2015]
[1750734798947,3.2078,2395.3,2395.1,0.83449]
[1750734799252,4.04225,2395.3,2395.0,1.367]
[1750734799851,3.2078,2395.3,2395.0,2.2015]
[1750734800156,3.2078,2395.3,2395.1,0.83448]
[1750734800354,3.2078,2395.3,2395.2,0.83446]
[1750734801162,3.2078,2395.3,2395.1,0.83447]
[1750734801553,3.2078,2395.3,2395.2,0.83446]
[1750734802647,3.2078,2395.3,2395.1,0.83448]
[1750734802852,3.2078,2395.3,2395.0,1.367]
[1750734803158,3.2078,2395.3,2395.2,0.83446]
[1750734804151,0.6864,2395.5,2395.4,0.83439]
[1750734804355,3.8747,2395.7,2395.0,1.367]
[1750734804356,3.8747,2395.7,2395.3,6.826]
[1750734804551,3.8747,2395.7,2395.6,0.83432]
[1750734804552,3.2078,2395.7,2395.6,0.83432]
[1750734805864,3.2078,2395.7,2395.5,0.83432]
[1750734806065,3.2078,2395.7,2395.6,0.83432]
[1750734806370,4.04208,2395.7,2395.5,0.83434]
[1750734807264,3.2078,2395.7,2395.1,0.6882]
[1750734807467,3.2078,2395.4,2395.0,6.826]
[1750734807765,0.8345,2395.1,2395.0,6.826]
[1750734808462,0.0637515,2395.1,2395.0,7.66053]
[1750734808869,0.0637515,2395.1,2395.0,9.06233]
[1750734809465,0.8982415,2395.1,2395.0,8.2278]
[1750734809971,0.0637515,2395.1,2395.0,9.06233]
[1750734811768,4.0421,2395.7,2395.1,2.08624]
[1750734811971,3.2078,2395.7,2395.4,5.52197522]
[1750734812174,0.83432,2395.6,2395.5,6.827]
[1750734813774,3.2078,2395.7,2395.6,0.83432]
[1750734813965,3.2078,2395.7,2395.2,1.3244]
[1750734813966,2.0858,2395.6,2395.0,3.2078]
[1750734814173,0.83449,2395.1,2395.0,6.826]
[1750734814472,0.8982415,2395.1,2395.0,6.826]
[1750734814670,0.0637515,2395.1,2395.0,6.826]
[1750734814972,0.8982415,2395.1,2395.0,6.826]
[1750734815779,0.0637515,2395.1,2395.0,6.826]
[1750734815969,0.0637515,2395.1,2395.0,7.66053]
[1750734817277,0.0637515,2395.1,2395.0,6.826]
[1750734817781,0.0637515,2395.1,2395.0,7.66053]
[1750734818672,0.8982415,2395.1,2395.0,6.826]
[1750734820565,0.0637515,2395.1,2395.0,6.826]
[1750734820772,0.0637515,2395.1,2395.0,7.66053]
[1750734821366,0.0637515,2395.1,2395.0,9.07143]
[1750734825969,0.8982415,2395.1,2395.0,8.2369]
[1750734826166,0.0637515,2395.1,2395.0,8.2369]
[1750734826369,0.0637515,2395.1,2395.0,9.07143]
[1750734829583,0.8982415,2395.1,2395.0,6.826]
[1750734829782,0.0637515,2395.1,2395.0,7.66053]
[1750734830473,0.8982415,2395.1,2395.0,7.66053]
[1750734830674,0.8982415,2395.1,2395.0,6.826]
[1750734830871,0.83459,2394.9,2394.8,6.827]
[1750734831778,1.79936191,2394.9,2394.8,6.827]
[1750734832581,3.17936191,2394.9,2394.8,6.827]
[1750734833278,2.34477191,2394.9,2394.4,5.69798002]
[1750734833479,0.83472,2394.5,2394.3,7.66177]
[1750734833684,4.04249,2394.6,2394.3,7.66175]
[1750734833978,0.96417719,2394.5,2394.3,7.66175]
[1750734834185,0.8347,2394.5,2394.3,7.66175]
[1750734835372,3.2078,2394.6,2394.3,6.827]
[1750734835579,3.2078,2394.6,2394.5,0.8347]
[1750734836386,3.2078,2394.6,2394.4,0.83471]
[1750734836677,3.2078,2394.6,2394.5,0.8347]
[1750734836883,3.2078,2394.6,2394.5,1.5443]
[1750734837083,4.04247,2394.6,2394.5,0.7096]
[1750734837482,3.2078,2394.6,2394.5,1.5443]
[1750734837682,4.04247,2394.6,2394.5,0.7096]
[1750734839284,0.83473,2394.5,2394.3,7.66175]
[1750734839984,0.83473,2394.5,2394.3,6.827]
[1750734840184,0.83474,2394.4,2394.3,6.827]
[1750734840386,0.83472,2394.5,2394.3,7.66177]
[1750734840587,4.0425,2394.6,2394.3,7.66175]
[1750734840788,0.83471,2394.5,2394.3,8.99015]
[1750734841184,3.2078,2394.6,2394.3,6.827]
[1750734841185,0.83474,2394.4,2394.3,6.827]
[1750734841482,3.2078,2394.6,2394.3,6.828]
[1750734841682,4.04248,2394.6,2394.3,7.66275]
[1750734841989,0.83474,2394.4,2394.3,6.828]
[1750734842784,3.2078,2394.6,2394.3,6.828]
[1750734843085,0.8347,2394.5,2394.3,7.66274]
[1750734843289,4.04249,2394.6,2394.3,7.66274]
[1750734843482,3.2078,2394.6,2394.3,6.828]
[1750734843678,4.04247,2394.6,2394.4,0.83472]
[1750734843991,0.8347,2394.5,2394.4,1.4538]
[1750734844193,0.8347,2394.5,2394.3,7.66275]
[1750734844681,0.83474,2394.4,2394.3,6.828]
[1750734845385,0.83471,2394.5,2394.3,7.66276]
[1750734845793,4.04249,2394.6,2394.3,6.828]
[1750734845991,4.1062415,2394.6,2394.4,0.83474]
[1750734849997,0.8347,2394.5,2394.4,0.83474]
[1750734850197,4.1062415,2394.6,2394.4,0.83474]
[1750734850595,0.8347,2394.5,2394.4,0.83474]
[1750734850898,4.1062315,2394.6,2394.3,8.1718]
[1750734851198,3.2715515,2394.6,2394.5,0.8347]
[1750734851500,4.1062215,2394.6,2394.4,0.83472]
[1750734852100,3.2715515,2394.6,2394.5,0.8347]
[1750734852295,3.2715515,2394.6,2394.2,0.7127]
[1750734852491,4.1062415,2394.6,2394.4,7.66472]
[1750734853296,3.2078,2395.2,2394.5,5.52231522]
[1750734853501,3.2078,2395.2,2395.1,0.83449]
[1750734853792,4.04226,2395.2,2395.0,7.66451]
[1750734854497,0.83449,2395.1,2394.6,1.4235]
[1750734854695,0.83449,2395.1,2394.9,0.83455]
[1750734854894,0.83449,2395.1,2394.9,7.66455]
[1750734855097,4.04227,2395.2,2395.0,0.83452]
[1750734855792,3.2078,2395.2,2395.1,0.83449]
[1750734858808,3.2078,2395.2,2395.1,2.17339]
[1750734859605,0.8344,2395.4,2395.2,0.83444]
[1750734859808,3.2078,2395.5,2395.4,0.83439]
[1750734860004,4.04213,2395.6,2395.4,0.83439]
[1750734860205,0.83439,2395.4,2395.3,6.829]
[1750734860605,4.04214,2395.6,2395.4,0.83437]
[1750734860809,4.04214,2395.6,2395.4,1.54177]
[1750734862507,3.2078,2395.6,2395.5,0.83435]
[1750734862911,0.679,2395.7,2395.6,0.83432]
[1750734863117,0.69,2395.8,2395.6,0.83432]
[1750734863600,1.52425,2395.8,2395.6,0.83432]
[1750734864817,4.04201,2395.9,2395.7,7.66328]
[1750734865007,3.2078,2395.9,2395.7,7.66326]
[1750734865506,3.2078,2395.9,2395.8,0.83425]
[1750734865705,3.2078,2395.9,2395.8,3.51705]
[1750734867317,3.2078,2396.2,2396.1,0.83414]
[1750734867617,3.2078,2396.2,2396.1,7.66214]
[1750734871117,0.83409,2396.3,2396.1,7.66214]
[1750734871519,4.04193,2396.2,2395.9,25.892]
[1750734871721,0.83416,2396.1,2396.0,6.827]
[1750734872618,3.9088,2396.2,2396.0,6.827]
[1750734872820,2.21424,2396.1,2396.0,6.827]
[1750734873220,0.83414,2396.1,2396.0,6.827]
[1750734874610,2.21424,2396.1,2396.0,6.827]
[1750734878135,0.83418,2396.0,2395.9,6.823]
[1750734878336,0.83421,2395.9,2395.8,6.823]
[1750734878524,0.83421,2395.9,2395.7,0.83426]
[1750734878828,0.83419,2396.0,2395.8,6.823]
[1750734879421,0.83419,2396.0,2395.8,7.65725]
[1750734879822,0.83416,2396.1,2395.8,7.65725]
[1750734880430,0.83418,2396.0,2395.8,7.65725]
[1750734880630,0.83418,2396.0,2395.8,6.823]
[1750734880830,0.83418,2396.0,2395.8,7.65725]
[1750734881122,0.83418,2396.0,2395.8,6.823]
[1750734881328,0.83418,2396.0,2395.8,7.65724]
[1750734881524,2.27337,2396.1,2395.8,7.65724]
[1750734882322,4.8066815,2396.2,2395.9,0.83421]
[1750734882523,4.8066815,2396.2,2396.0,0.83417]
[1750734882725,3.9725515,2396.2,2396.0,0.83417]
[1750734882930,8.61500978,2398.3,2397.4,0.83367]
[1750734883129,0.83359,2397.7,2397.6,3.2078]
[1750734883328,0.83359,2397.7,2396.8,2.48815596]
[1750734883329,0.83369,2397.4,2397.3,3.2078]
[1750734883533,1.4174,2397.6,2397.1,6.823]
[1750734883732,0.83376,2397.2,2397.1,6.823]
[1750734883924,1.4174,2397.3,2397.1,6.823]
[1750734884135,1.3514,2397.2,2397.1,6.823]
[1750734884334,1.3514,2397.2,2397.1,10.0308]
[1750734884835,1.3514,2397.2,2397.1,10.8646]
[1750734885135,0.83332,2398.5,2397.2,2.08438]
[1750734885332,4.6586,2398.7,2398.1,3.2078]
[1750734885538,0.83333,2398.5,2398.2,6.823]
[1750734885836,0.83337,2398.4,2398.2,6.823]
[1750734886039,2.28417,2398.4,2398.2,6.823]
[1750734886233,1.4508,2398.4,2398.2,6.823]
[1750734886432,2.28415,2398.4,2398.2,6.823]
[1750734887137,1.4508,2398.4,2398.2,6.823]
[1750734887338,1.4508,2398.4,2398.2,7.65639]
[1750734887542,3.8928,2399.0,2398.2,6.823]
[1750734887731,0.8333,2398.6,2398.4,3.2078]
[1750734888343,1.4508,2398.9,2398.4,3.2078]
[1750734888344,0.83331,2398.5,2398.4,3.2078]
[1750734888734,0.83326,2398.7,2398.4,3.2078]
[1750734888940,3.8928,2399.0,2398.6,0.83327]
[1750734889245,3.8928,2399.0,2398.6,7.65427]
[1750734889435,3.8928,2399.0,2398.7,0.83324]
[1750734889735,3.8928,2399.0,2398.6,6.821]
[1750734889736,0.685,2399.0,2398.8,3.2078]
[1750734889944,1.51816,2399.0,2398.8,3.2078]
[1750734890235,0.83317,2398.9,2398.8,3.2078]
[1750734890533,3.2078,2399.4,2398.8,8.2078]
[1750734890733,3.2078,2399.5,2398.9,53.2648]
[1750734890930,3.2078,2399.5,2399.0,6.82]
[1750734891236,0.6662,2399.6,2399.0,7.65313]
[1750734891436,0.6662,2399.6,2399.2,3.2078]
[1750734891638,0.83299,2399.5,2399.2,3.2078]
[1750734891833,0.833,2399.4,2399.2,3.2078]
[1750734892142,0.83303,2399.3,2399.2,3.2078]
[1750734894138,1.4156,2399.5,2399.2,3.2078]
[1750734894139,0.83302,2399.4,2399.2,3.2078]
[1750734894536,0.6662,2399.6,2399.2,3.2078]
[1750734894837,10.0258,2400.4,2399.6,0.83291]
[1750734895042,0.83281,2400.0,2399.9,3.2078]
[1750734895542,1.4446,2400.3,2399.9,3.2078]
[1750734895543,0.83278,2400.1,2399.9,3.2078]
[1750734895737,0.83274,2400.2,2400.0,6.817]
[1750734896039,18.76967019,2402.4,2400.0,6.817]
[1750734896040,3.2078,2401.6,2400.1,2.08187]
[1750734896340,0.83237,2401.2,2401.1,3.2078]
[1750734896542,0.83235,2401.3,2401.1,3.2078]
[1750734896939,0.83237,2401.2,2401.1,3.2078]
[1750734897235,0.83242,2401.1,2400.9,6.817]
[1750734897434,0.83244,2401.0,2400.9,6.817]
[1750734897831,0.83256,2400.7,2400.5,6.817]
[1750734898042,2.08077,2401.4,2400.5,6.817]
[1750734898043,1.3745,2400.9,2400.5,6.817]
[1750734898230,0.83251,2400.9,2400.7,3.2078]
[1750734898633,1.3745,2401.2,2400.7,3.2078]
[1750734898839,0.83244,2401.1,2401.0,3.2078]
[1750734899440,0.83248,2400.9,2400.8,6.815]
[1750734899642,0.83258,2400.6,2400.5,6.815]
[1750734899843,0.83257,2400.7,2400.5,6.815]
[1750734900741,0.83258,2400.6,2400.5,6.815]
[1750734900941,0.83262,2400.5,2400.4,3.2078]
[1750734901437,0.83272,2400.2,2400.1,3.2078]
[1750734901642,0.83268,2400.3,2400.2,7.108]
[1750734901842,0.83272,2400.2,2400.1,3.2078]
[1750734902041,0.83272,2400.2,2400.1,10.3158]
[1750734902439,0.83272,2400.2,2400.1,3.2078]
[1750734903644,0.8327,2400.3,2400.1,3.2078]
[1750734904439,0.83267,2400.4,2400.1,3.2078]
[1750734904645,2.2862,2400.6,2400.3,0.83268]
[1750734904846,0.83262,2400.5,2400.4,3.2078]
[1750734905839,0.83273,2400.2,2400.1,3.2078]
[1750734906349,0.83275,2400.1,2400.0,7.108]
[1750734906946,0.8964615,2400.3,2400.0,7.94077]
[1750734907146,0.8964615,2400.3,2400.2,0.83272]
[1750734907147,0.0637515,2400.3,2400.2,0.83272]
[1750734907355,0.0637515,2400.3,2400.2,4.04052]
[1750734907549,0.0637515,2400.3,2400.2,8.73580997]
[1750734908455,2.8759,2400.6,2400.5,0.83262]
[1750734908750,2.8759,2400.6,2400.5,15.84370997]
[1750734908948,0.6903,2401.4,2400.5,20.01108997]
[1750734909153,0.83235,2401.3,2401.0,4.04022]
[1750734909353,0.83235,2401.3,2401.1,7.108]
[1750734910353,1.041,2401.4,2401.1,7.108]
[1750734910647,1.87332,2401.4,2401.1,9.28019]
[1750734911148,0.83234,2401.3,2401.2,7.106]
[1750734911344,1.041,2401.4,2401.1,1.3398]
[1750734911550,0.83234,2401.3,2401.2,7.106]
[1750734912951,0.83237,2401.2,2401.1,1.3398]
[1750734913152,0.83237,2401.2,2401.1,8.4458]
[1750734913946,0.83241,2401.1,2401.0,3.2078]
[1750734914146,0.83241,2401.1,2401.0,10.3138]
[1750734915358,0.83241,2401.2,2401.0,10.3138]
[1750734915556,0.83236,2401.3,2401.0,12.51244]
[1750734915958,0.83238,2401.2,2401.0,12.51244]
[1750734916163,0.83238,2401.2,2401.0,11.68]
[1750734916350,0.83238,2401.2,2401.0,12.51244]
[1750734916550,0.83237,2401.2,2401.0,11.68]
[1750734917549,1.041,2401.4,2401.0,12.51243]
[1750734917756,0.83241,2401.1,2401.0,8.4722]
[1750734917948,0.83241,2401.1,2401.0,10.3128]
[1750734918149,0.83241,2401.1,2401.0,3.2078]
[1750734918655,0.83239,2401.2,2401.0,3.2078]
[1750734918960,1.041,2401.4,2401.1,7.105]
[1750734919152,1.041,2401.4,2401.3,3.2078]
[1750734919352,1.8733,2401.4,2401.3,3.2078]
[1750734919659,0.8323,2401.4,2401.3,3.2078]
[1750734920947,2.2621,2401.4,2401.3,3.2078]
[1750734921152,7.2621,2401.4,2401.3,3.2078]
[1750734921561,0.8323,2401.4,2401.3,3.2078]
[1750734923662,3.65369,2401.5,2401.3,4.04014]
[1750734923865,3.65369,2401.5,2401.3,3.2078]
[1750734924068,2.8214,2401.5,2401.4,0.8323]
[1750734924360,2.8214,2401.5,2401.4,7.104]
[1750734924864,3.65367,2401.5,2401.4,7.104]
[1750734925253,2.8214,2401.5,2401.4,7.9363]
[1750734925455,3.65367,2401.5,2401.4,7.104]
[1750734925657,2.8214,2401.5,2401.4,7.104]
[1750734925857,3.65367,2401.5,2401.4,7.104]
[1750734926859,2.8214,2401.5,2401.4,7.9363]
[1750734927059,2.8214,2401.5,2401.4,9.3859]
[1750734927262,2.8214,2401.5,2401.4,14.3859]
[1750734927460,3.32374978,2403.3,2401.4,10.6246]
[1750734927662,0.83185,2402.7,2402.6,3.2078]
[1750734927859,2.07955,2402.8,2402.0,37.0615]
[1750734928161,3.2078,2402.9,2402.0,3.2078]
[1750734928365,3.2078,2402.9,2402.3,3.2078]
[1750734928556,0.83192,2402.5,2402.3,3.2078]
[1750734928761,0.83196,2402.4,2402.3,3.2078]
[1750734929872,1.4414,2402.8,2401.9,3.2078]
[1750734929873,0.83206,2402.2,2401.9,3.2078]
[1750734930167,0.83206,2402.2,2402.0,7.103]
[1750734930565,0.83202,2402.3,2402.0,7.103]
[1750734930866,0.83203,2402.2,2402.0,7.103]
[1750734931072,0.611,2402.4,2402.0,7.103]
[1750734931367,0.83204,2402.2,2402.0,7.103]
[1750734931573,0.611,2402.4,2402.1,6.10018997]
[1750734931769,0.611,2402.4,2402.3,3.2078]
[1750734931965,0.611,2402.4,2402.3,10.2978]
[1750734932267,1.44296,2402.4,2402.3,3.2078]
[1750734933257,2.7687,2402.6,2402.3,3.2078]
[1750734933461,2.7687,2402.6,2402.4,7.09]
[1750734934061,0.83193,2402.5,2402.3,3.2078]
[1750734934259,2.7687,2402.6,2402.3,3.2078]
[1750734934856,0.83196,2402.4,2402.3,3.2078]
[1750734936265,0.8957115,2402.4,2402.3,3.2078]
[1750734937167,0.83196,2402.4,2402.3,3.2078]
[1750734938666,0.83213,2401.9,2401.8,3.9291]
[1750734938865,0.83213,2401.9,2401.8,3.2078]
[1750734940570,0.83211,2402.0,2401.8,3.2078]
[1750734940771,0.83213,2401.9,2401.8,3.2078]
[1750734943971,0.8323,2401.4,2401.3,0.6777]
[1750734944770,5.0,2401.4,2400.9,4.44185415]
[1750734944966,0.83258,2400.6,2400.5,4.5477]
[1750734945472,5.28889,2401.1,2400.5,4.5477]
[1750734945473,3.2078,2401.1,2400.5,4.5477]
[1750734945667,0.83253,2400.8,2400.5,5.38031]
[1750734945867,3.2078,2401.1,2400.6,1.3925]
[1750734946067,3.2078,2401.1,2400.7,4.69528997]
[1750734946263,3.2078,2401.1,2400.8,1.3925]
[1750734946469,0.7211,2401.3,2400.8,4.6003]
[1750734946674,0.83244,2401.0,2400.8,4.6003]
[1750734947171,3.2078,2402.0,2400.8,9.6003]
[1750734947368,0.7146,2401.9,2401.4,4.69528997]
[1750734947573,3.2078,2401.7,2401.3,7.09]
[1750734947773,0.83228,2401.5,2401.3,7.09]
[1750734947974,0.8323,2401.4,2401.3,8.4825]
[1750734948174,0.83229,2401.5,2401.3,8.4825]
[1750734948378,0.8323,2401.4,2401.3,1.3925]
[1750734948576,0.83229,2401.5,2401.3,1.3925]
[1750734948876,3.2078,2401.7,2401.2,3.8934]
[1750734949080,0.83234,2401.3,2401.2,3.8934]
[1750734949976,0.83232,2401.4,2401.2,3.8934]
[1750734950279,0.83234,2401.3,2401.2,5.2047]
[1750734950581,0.83234,2401.3,2401.2,3.8934]
[1750734951073,0.83232,2401.4,2401.2,3.8934]
[1750734951277,0.83225,2401.6,2401.3,0.83233]
[1750734951476,0.83225,2401.6,2401.4,1.3113]
[1750734951783,3.9102,2401.7,2401.4,1.3113]
[1750734952079,0.83227,2401.5,2401.4,1.3113]
[1750734952275,0.83233,2401.4,2401.2,0.6856]
[1750734952472,3.9102,2401.7,2401.2,2.87807]
[1750734952671,0.83232,2401.4,2401.2,5.2535]
[1750734952876,3.9102,2401.7,2401.3,1.3601]
[1750734953073,0.83229,2401.5,2401.3,1.3601]
[1750734953481,0.8323,2401.4,2401.3,1.3601]
[1750734953878,0.7024,2401.7,2401.3,1.3601]
[1750734954086,0.83229,2401.5,2401.3,1.3601]
[1750734954280,0.8323,2401.4,2401.3,1.3601]
[1750734954478,0.83234,2401.3,2401.2,0.6856]
[1750734955376,3.2078,2401.6,2401.2,0.6856]
[1750734955577,0.83225,2401.6,2401.3,2.22354]
[1750734956080,0.83216,2401.8,2401.5,4.69528997]
[1750734956278,0.83207,2402.1,2401.8,0.83215]
[1750734956483,0.83209,2402.0,2401.9,1.3912]
[1750734956676,0.83209,2402.0,2401.9,2.085]
[1750734958479,0.7136,2402.2,2401.7,3.2078]
[1750734958686,0.83214,2401.9,2401.7,3.2078]
[1750734958869,0.83214,2401.9,2401.7,4.6019]
[1750734959274,0.83211,2402.0,2401.8,6.08938997]
[1750734959477,0.83211,2402.0,2401.8,13.17938997]
[1750734959677,0.83211,2402.0,2401.8,14.01154997]
[1750734959678,0.8321,2402.0,2401.8,14.01154997]
[1750734959886,0.83205,2402.2,2401.9,0.83212]
[1750734960183,3.2078,2402.3,2402.0,1.3941]
[1750734960379,0.83201,2402.3,2402.1,0.7072]
[1750734960584,0.83201,2402.3,2402.2,1.3941]
[1750734961178,4.03967,2402.7,2402.2,1.3941]
[1750734961487,0.83187,2402.7,2402.4,5.52722997]
[1750734961681,0.83187,2402.7,2402.5,1.4253]
[1750734962087,0.83187,2402.7,2402.6,0.7072]
[1750734963085,0.83196,2402.4,2402.3,7.848]
[1750734963477,0.83196,2402.4,2402.3,0.693]
[1750734964291,0.83199,2402.3,2402.2,0.7171]
[1750734966384,4.03978,2402.4,2402.2,0.7171]
[1750734966586,0.83199,2402.3,2402.2,0.7171]
[1750734967189,4.03978,2402.4,2402.2,0.7171]
[1750734967491,0.83199,2402.3,2402.2,0.7171]
[1750734967982,4.03977,2402.4,2402.2,1.5491]
[1750734968178,0.8319,2402.6,2402.4,0.83194]
[1750734968382,0.8319,2402.6,2402.5,2.064]
[1750734969286,3.2078,2402.8,2402.5,2.064]
[1750734969487,4.03964,2402.8,2402.5,2.8959]
[1750734969685,4.03964,2402.8,2402.6,0.83188]
[1750734969993,4.03962,2402.8,2402.7,1.386]
[1750734970179,4.03962,2402.8,2402.7,2.0729]
[1750734970495,0.83167,2403.3,2403.0,0.83173]
[1750734970687,0.83159,2403.5,2403.2,8.73475997]
[1750734970887,0.83159,2403.5,2403.3,9.2888]
[1750734971089,0.83159,2403.5,2403.2,4.71748]
[1750734971293,0.83163,2403.4,2403.2,11.0398]
[1750734971599,0.83156,2403.6,2403.3,0.83164]
[1750734971799,0.83152,2403.7,2403.4,0.8316]
[1750734972092,2.15629,2403.8,2403.3,1.4479]
[1750734972292,0.83146,2403.9,2403.6,0.83154]
[1750734972498,1.3609,2404.2,2403.5,3.2078]
[1750734972791,1.3958,2404.1,2403.5,11.8097]
[1750734972996,0.83154,2403.6,2403.5,3.2078]
[1750734973196,10.3618,2404.0,2402.8,1.65024047]
[1750734973197,3.2078,2403.9,2403.0,3.2078]
[1750734973500,3.2078,2403.6,2403.0,3.2078]
[1750734973683,0.83169,2403.2,2403.0,3.2078]
[1750734973889,0.83171,2403.1,2403.0,3.2078]
[1750734974094,0.83181,2402.9,2402.7,3.2078]
[1750734974393,0.8318,2402.9,2402.7,3.2078]
[1750734974792,0.83177,2403.0,2402.7,3.2078]
[1750734974995,1.4336,2403.2,2402.7,3.2078]
[1750734975694,0.8317,2403.2,2402.8,0.8318]
[1750734975896,0.83166,2403.3,2402.9,0.83177]
[1750734976098,0.83167,2403.3,2403.0,1.392]
[1750734976394,0.83167,2403.3,2403.0,5.43155]
[1750734976593,6.0023,2403.5,2403.0,3.8818]
[1750734977099,0.83171,2403.1,2403.0,3.2078]
[1750734977597,6.0023,2403.5,2403.0,3.2078]
[1750734977800,9.63215132,2404.1,2403.3,3.2078]
[1750734978096,9.63215132,2404.1,2403.3,4.03943]
[1750734978097,3.9259,2404.0,2403.3,4.03943]
[1750734978287,0.83159,2403.5,2403.3,3.2078]
[1750734978692,0.83156,2403.6,2403.3,3.2078]
[1750734978890,7.37348,2404.0,2403.3,3.2078]
[1750734979286,0.83161,2403.4,2403.3,3.2078]
[1750734980193,1.54971,2403.4,2403.3,3.2078]
[1750734980390,0.0637515,2403.5,2403.4,0.83161]
[1750734980593,0.0637515,2403.5,2403.3,4.5851]
[1750734980903,5.98394,2404.0,2403.3,4.5851]
[1750734980904,0.6976,2404.0,2403.3,4.5851]
[1750734981095,0.83141,2404.0,2403.7,4.03929]
[1750734981290,0.83142,2404.0,2403.8,2.7559]
[1750734981495,0.6976,2404.3,2403.8,2.7559]
[1750734981694,0.83135,2404.2,2403.8,3.58737]
[1750734982096,1.52892,2404.3,2403.9,0.83143]
[1750734982297,1.52892,2404.3,2404.0,1.3773]
[1750734982499,5.28546,2405.0,2404.2,3.2078]
[1750734982702,0.83125,2404.5,2404.2,10.3598]
[1750734982903,0.7143,2404.8,2404.2,4.6584]
[1750734983099,0.83128,2404.4,2404.2,11.8094]
[1750734983298,0.7143,2404.8,2404.2,12.64073]
[1750734983299,0.83123,2404.6,2404.2,12.64073]
[1750734983497,0.83123,2404.6,2404.3,2.155]
[1750734983694,0.83126,2404.4,2404.3,2.155]
[1750734983899,0.7143,2404.8,2404.2,3.2078]
[1750734984508,0.83125,2404.5,2404.2,3.2078]
[1750734984805,0.8313,2404.3,2404.2,3.2078]
[1750734984991,0.83133,2404.2,2404.1,7.151]
[1750734985399,0.83137,2404.1,2403.9,11.0656]
[1750734985691,0.8314,2404.0,2403.9,3.2078]
[1750734985892,0.83153,2403.7,2403.5,5.281]
[1750734986195,0.83154,2403.6,2403.5,3.9146]
[1750734986405,0.83154,2403.6,2403.5,3.2078]
[1750734990906,0.83164,2403.3,2403.2,3.9146]
[1750734991102,0.83175,2403.0,2402.9,3.2078]
[1750734991402,0.702,2403.2,2402.9,3.2078]
[1750734991608,0.83173,2403.1,2402.9,3.2078]
[1750734991804,0.83175,2403.0,2402.9,4.6026]
[1750734992005,0.83175,2403.0,2402.9,3.2078]
[1750734992204,0.702,2403.2,2402.9,3.2078]
[1750734992405,0.83175,2403.0,2402.9,3.2078]
[1750734993802,0.83185,2402.7,2402.6,3.2078]
[1750734994002,6.69531,2402.9,2402.3,3.9156]
[1750734994203,6.69531,2402.9,2402.3,3.2078]
[1750734994204,11.7478,2402.9,2402.3,3.2078]
[1750734994706,0.83196,2402.4,2402.3,3.2078]
[1750734994909,2.07955,2402.8,2402.1,7.132]
[1750734995108,0.83201,2402.3,2402.0,4.6026]
[1750734995310,0.83201,2402.3,2402.0,5.43468]